bitfinex-derivatives/quotes_SOLF0:USTF0_20250329
["timestamp","ask_amount","ask_price","bid_price","bid_amount"]
[1743265344019,0.05241147,126.11,126.09,7.9344]
[1743265344219,0.05241147,126.11,126.08,32.70846718]
[1743265344612,7.98591147,126.11,126.08,40.64326718]
[1743265344921,0.05241147,126.11,126.09,28.32]
[1743265346321,0.05241147,126.11,126.09,36.2545]
[1743265346622,0.05241147,126.11,126.09,28.32]
[1743265347123,0.05241147,126.11,126.09,36.2543]
[1743265347716,0.05241147,126.11,126.1,7.934]
[1743265349223,233.07295152,126.23,126.13,7.9317]
[1743265349224,6.49439395,126.18,126.13,7.9317]
[1743265349522,7.9299,126.17,126.13,36.2517]
[1743265349725,6.49439395,126.18,126.13,28.32]
[1743265349923,6.49439395,126.16,126.13,28.32]
[1743265350125,14.42459395,126.16,126.15,0.06001699]
[1743265350526,6.49439395,126.16,126.11,28.32]
[1743265351124,6.49439395,126.16,126.11,36.2533]
[1743265351724,0.05615115,126.15,126.12,0.05933937]
[1743265351925,0.05615115,126.15,126.11,34.81439395]
[1743265352125,0.05615115,126.15,126.13,7.9317]
[1743265353735,0.05615115,126.15,126.14,36.2515]
[1743265354029,268.09439395,126.2,126.14,36.2515]
[1743265354722,7.9296,126.17,126.14,28.32]
[1743265355228,0.05841738,126.17,126.14,28.37583803]
[1743265356026,0.05841738,126.17,126.14,36.30673803]
[1743265357029,0.05841738,126.17,126.15,7.9307]
[1743265357427,7.98801738,126.17,126.14,36.30683803]
[1743265359331,0.05841738,126.17,126.14,28.37583803]
[1743265359933,0.05841738,126.17,126.15,7.9306]
[1743265360634,7.98801738,126.17,126.14,36.30703803]
[1743265361031,0.05841738,126.17,126.16,7.9302]
[1743265362136,0.05841738,126.17,126.15,6.49439395]
[1743265363234,0.05841738,126.17,126.16,7.9302]
[1743265363434,0.05841738,126.17,126.15,6.49439395]
[1743265364042,0.05841738,126.17,126.15,14.42489395]
[1743265365641,0.05841738,126.17,126.16,7.9302]
[1743265366642,14.42109395,126.22,126.19,7.9282]
[1743265366940,6.49439395,126.24,126.19,34.79439395]
[1743265367144,7.9254,126.24,126.2,7.9273]
[1743265367844,0.05306231,126.23,126.21,0.05104833]
[1743265368844,7.9264,126.22,126.21,0.05104833]
[1743265370337,14.42079395,126.22,126.21,0.05104833]
[1743265375552,7.9285,126.19,126.17,28.3]
[1743265375848,6.49439395,126.2,126.13,10.72019395]
[1743265376050,6.49439395,126.2,126.14,28.3]
[1743265376846,7.9296,126.17,126.16,0.05619681]
[1743265380356,14.48431912,126.18,126.16,0.05619681]
[1743265380753,6.55511912,126.18,126.16,0.05619681]
[1743265381754,7.9296,126.17,126.16,0.05619681]
[1743265384062,14.48431912,126.18,126.16,0.05619681]
[1743265386663,0.06072517,126.18,126.16,0.05619681]
[1743265386962,0.06072517,126.18,126.17,28.3]
[1743265387159,0.06072517,126.18,126.17,36.2296]
[1743265387363,14.42109395,126.22,126.17,28.3]
[1743265387564,6.49439395,126.22,126.17,34.79439395]
[1743265387764,6.49439395,126.22,126.19,7.9279]
[1743265387966,6.49439395,126.22,126.2,28.3]
[1743265388563,6.54496354,126.22,126.2,36.28731296]
[1743265389763,6.54496354,126.22,126.2,28.35961296]
[1743265390760,14.47146354,126.22,126.2,28.35961296]
[1743265392161,6.54496354,126.22,126.2,28.35961296]
[1743265392465,6.54496354,126.22,126.2,36.28731296]
[1743265392670,6.54496354,126.22,126.2,28.35961296]
[1743265393164,14.47166354,126.22,126.2,28.35961296]
[1743265393566,7.9271,126.21,126.2,28.35961296]
[1743265393861,7.9271,126.21,126.2,0.05961296]
[1743265394067,7.93,126.17,126.14,7.9311]
[1743265394263,6.49439395,126.18,126.14,28.28]
[1743265394763,6.49439395,126.18,126.13,36.212]
[1743265395266,0.05595105,126.17,126.14,0.05585321]
[1743265395467,7.9308,126.16,126.14,0.05585321]
[1743265395670,0.05595105,126.17,126.14,0.05585321]
[1743265396064,7.9302,126.16,126.14,0.05585321]
[1743265396467,0.05595105,126.17,126.14,0.05585321]
[1743265396672,7.9308,126.15,126.14,0.05585321]
[1743265398471,6.49439395,126.16,126.14,0.05585321]
[1743265399065,7.9305,126.16,126.14,0.05585321]
[1743265401773,7.98585105,126.17,126.14,7.98725321]
[1743265404074,7.9302,126.16,126.14,0.05585321]
[1743265406274,7.9308,126.15,126.14,0.05585321]
[1743265407069,7.9304,126.16,126.14,0.05585321]
[1743265407471,0.05595105,126.17,126.15,34.79439395]
[1743265407673,0.05595105,126.17,126.16,7.9302]
[1743265409177,6.49439395,126.22,126.19,7.9279]
[1743265409380,6.49439395,126.22,126.19,36.2279]
[1743265409575,6.49439395,126.22,126.19,28.3]
[1743265409977,14.42109395,126.22,126.19,28.3]
[1743265410376,6.5463802,126.22,126.19,28.3500545]
[1743265410571,6.5463802,126.22,126.2,7.9273]
[1743265410776,6.5463802,126.22,126.19,28.3500545]
[1743265412777,7.9271,126.21,126.19,28.3500545]
[1743265413779,7.9271,126.21,126.19,0.0500545]
[1743265415171,7.9277,126.2,126.19,0.0500545]
[1743265415681,14.42209395,126.2,126.19,0.0500545]
[1743265420087,19.47764446,126.2,126.19,0.0500545]
[1743265420476,7.9301,126.17,126.14,7.9311]
[1743265420680,6.49439395,126.18,126.13,28.28]
[1743265420982,6.49439395,126.18,126.14,7.9314]
[1743265421182,7.9299,126.17,126.14,7.9314]
[1743265421686,7.98827308,126.17,126.14,7.98138049]
[1743265422080,7.9302,126.16,126.14,0.04998049]
[1743265423789,6.49439395,126.16,126.14,0.04998049]
[1743265424189,14.42489395,126.16,126.14,0.04998049]
[1743265424987,7.9308,126.15,126.14,0.04998049]
[1743265430895,7.9336,126.11,126.06,6.49439395]
[1743265431092,6.49439395,126.12,126.08,28.28]
[1743265431596,6.49439395,126.12,126.07,28.28]
[1743265431998,7.98808044,126.11,126.08,0.05456302]
[1743265432590,7.98808044,126.11,126.08,7.98976302]
[1743265433195,7.9341,126.1,126.08,0.05456302]
[1743265433896,0.05428044,126.11,126.08,0.05456302]
[1743265434097,0.05428044,126.11,126.08,6.54895697]
[1743265434499,0.05428044,126.11,126.1,7.934]
[1743265434698,0.05428044,126.11,126.1,36.234]
[1743265439406,7.9304,126.16,126.13,7.9317]
[1743265439598,7.9304,126.16,126.13,36.2317]
[1743265440309,0.05846661,126.16,126.14,7.9314]
[1743265441809,7.98866661,126.16,126.14,7.9314]
[1743265442699,0.05846661,126.16,126.13,28.35128834]
[1743265443604,7.98876661,126.16,126.13,36.28298834]
[1743265444907,7.931,126.15,126.13,28.35128834]
[1743265445405,7.9315,126.14,126.13,0.05128834]
[1743265447413,7.9337,126.11,126.08,36.235]
[1743265448607,7.9341,126.1,126.08,0.05884602]
[1743265448812,0.06010288,126.11,126.08,0.05884602]
[1743265449412,0.06010288,126.11,126.08,7.99374602]
[1743265449413,7.99400288,126.11,126.08,7.99374602]
[1743265449916,0.06010288,126.11,126.09,7.9342]
[1743265450211,0.06010288,126.11,126.08,0.05884602]
[1743265450710,0.06010288,126.11,126.09,7.9342]
[1743265451317,0.06010288,126.11,126.08,0.05884602]
[1743265451512,6.49439395,126.1,126.08,0.05884602]
[1743265452010,7.9346,126.09,126.08,0.05884602]
[1743265472020,0.06010288,126.11,126.08,0.05884602]
[1743265472215,0.06010288,126.11,126.09,28.3]
[1743265472423,14.42619395,126.14,126.09,28.3]
[1743265472621,6.49439395,126.14,126.09,32.5824]
[1743265472919,7.933,126.12,126.09,40.5167]
[1743265473227,14.42739395,126.12,126.09,36.2343]
[1743265473426,6.49439395,126.12,126.09,28.3]
[1743265473626,6.5486223,126.12,126.09,28.3]
[1743265474027,6.5486223,126.12,126.08,0.05884602]
[1743265474229,6.49439395,126.1,126.08,0.05884602]
[1743265475029,14.42879395,126.1,126.08,0.05884602]
[1743265477029,7.9346,126.09,126.08,0.05884602]
[1743265478026,14.42869395,126.1,126.08,0.05884602]
[1743265478532,6.49439395,126.1,126.08,0.05884602]
[1743265479434,14.42869395,126.1,126.08,0.05884602]
[1743265479630,6.49439395,126.1,126.08,0.05884602]
[1743265480732,7.9346,126.09,126.08,0.05884602]
[1743265482333,6.49439395,126.1,126.08,0.05884602]
[1743265482633,6.5486223,126.12,126.08,28.35884602]
[1743265482838,14.4813223,126.12,126.09,7.9341]
[1743265483134,6.5486223,126.12,126.08,28.35884602]
[1743265483524,7.9343,126.1,126.08,28.35884602]
[1743265483930,6.5486223,126.12,126.08,28.35884602]
[1743265484332,7.9337,126.11,126.08,36.29404602]
[1743265485236,7.934,126.1,126.08,36.29404602]
[1743265486837,7.934,126.1,126.08,7.99404602]
[1743265488341,6.49439395,126.1,126.08,0.05884602]
[1743265488939,14.42869395,126.1,126.08,0.05884602]
[1743265490336,7.9346,126.09,126.08,0.05884602]
[1743265491039,5.05734384,126.09,125.99,154.20906098]
[1743265491235,6.49439395,126.05,126.0,5.58887448]
[1743265491429,6.49439395,126.06,126.02,7.9387]
[1743265491632,5.05928854,126.1,126.03,28.3]
[1743265491838,6.49439395,126.1,126.03,28.3]
[1743265492039,6.49439395,126.1,126.05,7.9368]
[1743265492345,0.05779667,126.08,126.05,0.05013181]
[1743265492942,6.55219062,126.08,126.05,0.05013181]
[1743265493141,6.49439395,126.06,126.05,0.05013181]
[1743265493639,14.43089395,126.06,126.05,0.05013181]
[1743265496844,17.07268802,126.06,126.05,0.05013181]
[1743265497345,7.9385,126.03,126.01,28.3]
[1743265497545,7.9385,126.03,126.01,28.84]
[1743265498043,7.9385,126.03,126.0,4.1624]
[1743265498244,17.07418802,126.04,126.0,33.0424]
[1743265498648,0.05678665,126.03,126.0,42.21435731]
[1743265498847,0.05678665,126.03,126.0,42.17858802]
[1743265499048,0.05678665,126.03,126.0,50.11858802]
[1743265499341,0.05678665,126.03,126.0,12.13816929]
[1743265499543,0.05678665,126.03,126.0,41.03816929]
[1743265500045,7.99518665,126.03,126.0,41.03816929]
[1743265500345,7.99518665,126.03,126.0,33.09816929]
[1743265500547,0.05678665,126.03,126.0,33.09816929]
[1743265501046,0.05678665,126.03,126.01,7.9396]
[1743265502148,0.05678665,126.03,126.0,50.17435731]
[1743265504149,7.99518665,126.03,126.0,50.17435731]
[1743265504346,9.19297467,126.03,126.0,33.09816929]
[1743265504650,9.13618802,126.02,126.0,0.03576929]
[1743265504846,9.13618802,126.02,126.0,7.97606929]
[1743265505046,17.13157467,126.03,126.0,7.97606929]
[1743265505547,9.13618802,126.01,126.0,0.03576929]
[1743265506142,17.07578802,126.01,126.0,0.03576929]
[1743265511947,7.9421,125.98,125.95,28.88]
[1743265512147,17.07828802,125.98,125.95,28.88]
[1743265512544,9.13618802,125.98,125.95,28.88]
[1743265512752,7.9424,125.97,125.95,28.88]
[1743265512954,9.13618802,125.99,125.95,28.88]
[1743265513155,0.05183552,125.97,125.96,7.9424]
[1743265515751,0.05183552,125.97,125.96,17.07858802]
[1743265516952,0.05183552,125.97,125.96,7.9424]
[1743265517152,0.05183552,125.97,125.96,9.13618802]
[1743265518854,0.05183552,125.97,125.96,17.07898802]
[1743265519759,0.05183552,125.97,125.96,7.9428]
[1743265520558,0.05183552,125.97,125.95,45.95928802]
[1743265520756,0.05183552,125.97,125.95,38.01618802]
[1743265521153,0.05183552,125.97,125.93,9.13618802]
[1743265521354,0.05183552,125.97,125.94,30.48723864]
[1743265521553,0.05183552,125.97,125.95,1.42723864]
[1743265521754,0.05183552,125.97,125.95,7.9433]
[1743265522054,0.05183552,125.97,125.94,29.06]
[1743265522055,9.18802354,125.97,125.94,29.06]
[1743265523557,9.18802354,125.97,125.95,7.943]
[1743265523858,0.05183552,125.97,125.95,7.943]
[1743265524061,7.99403552,125.97,125.95,7.943]
[1743265524461,0.05183552,125.97,125.96,7.9428]
[1743265526263,0.05183552,125.97,125.96,17.07898802]
[1743265526964,0.05183552,125.97,125.96,17.08556593]
[1743265528661,0.05183552,125.97,125.96,18.51267354]
[1743265529363,0.05183552,125.97,125.96,17.08556593]
[1743265529560,0.05183552,125.97,125.96,18.51262285]
[1743265529766,9.14276593,126.05,125.96,18.50979462]
[1743265529966,9.14276593,126.06,126.01,9.14276593]
[1743265530167,9.14276593,126.06,126.02,28.96]
[1743265530367,17.07956593,126.06,126.03,7.9384]
[1743265531065,9.13488005,126.05,126.03,7.99023552]
[1743265531460,7.9377,126.04,126.03,0.05183552]
[1743265531666,9.13488005,126.04,125.99,28.94]
[1743265531866,9.13488005,126.01,125.99,28.94]
[1743265532064,17.07538005,126.0,125.99,28.94]
[1743265532269,17.07538005,126.0,125.97,28.94]
[1743265532765,17.13120436,126.0,125.97,28.94]
[1743265533869,7.941,125.99,125.97,28.94]
[1743265534063,9.19070436,126.0,125.97,28.94]
[1743265534659,17.13140436,126.0,125.97,28.94]
[1743265534865,9.19070436,126.0,125.97,28.94]
[1743265535370,7.99642431,126.0,125.97,28.94]
[1743265537270,7.941,125.99,125.97,28.94]
[1743265541872,0.05582431,126.0,125.98,9.13488005]
[1743265542073,9.13488005,126.04,125.99,9.13488005]
[1743265542270,7.9387,126.03,126.0,38.01488005]
[1743265542473,7.9387,126.03,126.0,28.88]
[1743265542674,9.13488005,126.04,126.0,28.88]
[1743265542873,9.13488005,126.03,126.0,28.88]
[1743265543271,9.19049087,126.03,126.0,28.93552084]
[1743265543770,17.07428005,126.02,126.0,28.93552084]
[1743265543970,9.13488005,126.02,126.0,28.93552084]
[1743265544176,7.9396,126.01,126.0,28.93552084]
[1743265544370,7.9396,126.01,126.0,0.05552084]
[1743265545470,17.07448005,126.01,126.0,0.05552084]
[1743265550286,9.13488005,126.01,126.0,0.05552084]
[1743265554188,9.13488005,126.01,126.0,7.99582084]
[1743265554387,9.19049087,126.03,126.0,28.79552084]
[1743265554981,9.19049087,126.03,126.01,7.9393]
[1743265558084,17.12889087,126.03,126.01,7.9393]
[1743265558592,17.12889087,126.03,126.0,36.73542084]
[1743265558789,17.12889087,126.03,126.0,28.79552084]
[1743265559090,9.13488005,126.02,126.0,28.79552084]
[1743265559591,9.13488005,126.01,126.0,28.79552084]
[1743265560086,17.07448005,126.01,126.0,0.05552084]
[1743265562788,9.13488005,126.02,126.0,7.99582084]
[1743265562989,17.12909087,126.03,126.0,7.99582084]
[1743265563192,9.13488005,126.02,126.0,7.99582084]
[1743265563497,9.13488005,126.01,126.0,0.05552084]
[1743265563995,17.07448005,126.01,126.0,0.05552084]
[1743265564197,9.13488005,126.01,126.0,0.05552084]
[1743265565693,17.07448005,126.01,126.0,0.05552084]
[1743265566494,7.9393,126.02,126.0,0.05552084]
[1743265566693,9.13488005,126.01,126.0,0.05552084]
[1743265566892,17.07448005,126.01,126.0,0.05552084]
[1743265567287,14.1953789,126.01,125.92,24.71280165]
[1743265567495,9.13488005,125.95,125.93,30.38726542]
[1743265567689,9.13488005,125.95,125.93,1.42726542]
[1743265567895,9.13488005,125.94,125.92,28.96]
[1743265568095,9.13488005,125.94,125.91,402.90533325]
[1743265568296,9.13488005,125.93,125.92,1.42751177]
[1743265568500,9.13488005,125.93,125.91,373.94533325]
[1743265568794,9.13488005,125.93,125.91,351.4002316]
[1743265568990,9.13488005,125.93,125.91,359.3458316]
[1743265570290,9.13488005,125.93,125.91,7.9456]
[1743265570992,9.13488005,125.93,125.92,7.9453]
[1743265579902,9.13488005,125.93,125.91,7.9456]
[1743265581801,9.13488005,125.92,125.83,309.0596335]
[1743265582003,9.13488005,125.89,125.85,9.13488005]
[1743265582303,0.05651689,125.89,125.86,38.75625293]
[1743265582699,0.05651689,125.89,125.87,1.42775293]
[1743265582901,9.13488005,125.88,125.87,1.42775293]
[1743265583097,9.19139694,125.89,125.86,29.38]
[1743265584206,0.05651689,125.89,125.86,38.51488005]
[1743265584411,0.05651689,125.89,125.87,9.13488005]
[1743265584800,0.05651689,125.89,125.88,1.42805476]
[1743265585000,0.05651689,125.89,125.88,9.37585476]
[1743265586307,9.13488005,125.93,125.92,7.9453]
[1743265586709,9.13488005,125.94,125.92,7.9453]
[1743265587402,9.13488005,125.94,125.91,37.3657]
[1743265587603,9.13488005,125.93,125.92,0.05300543]
[1743265589517,9.13488005,125.93,125.92,7.99830543]
[1743265590617,9.19240629,125.94,125.92,7.99830543]
[1743265591313,0.05752624,125.94,125.93,7.9447]
[1743265592612,0.05752624,125.94,125.92,7.99810543]
[1743265592918,9.19240629,125.94,125.92,7.99810543]
[1743265593613,9.13488005,125.93,125.92,0.05300543]
[1743265594315,17.07958005,125.93,125.92,0.05300543]
[1743265596411,9.13488005,125.93,125.92,0.05300543]
[1743265599521,17.07958005,125.93,125.92,0.05300543]
[1743265599723,9.13488005,125.93,125.92,0.05300543]
[1743265600419,17.07958005,125.93,125.92,0.05300543]
[1743265600721,9.13488005,125.93,125.92,0.05300543]
[1743265602922,9.13488005,125.93,125.92,7.99830543]
[1743265603827,9.13488005,125.93,125.92,0.05300543]
[1743265604025,17.13650629,125.94,125.92,0.05300543]
[1743265608528,7.9439,125.93,125.92,0.05300543]
[1743265608834,17.07878005,125.93,125.92,0.05300543]
[1743265610031,9.13488005,125.93,125.92,0.05300543]
[1743265610532,0.05752624,125.94,125.92,37.23750543]
[1743265611035,0.05752624,125.94,125.92,29.29300543]
[1743265611229,8.00092624,125.94,125.92,29.29300543]
[1743265613638,0.05752624,125.94,125.92,37.23750543]
[1743265614134,0.05752624,125.94,125.93,7.9439]
[1743265615931,9.13488005,125.99,125.93,9.13488005]
[1743265616135,271.07488005,126.0,125.95,9.13488005]
[1743265616329,9.13488005,126.0,125.96,29.2]
[1743265616529,17.07468005,126.0,125.97,7.9412]
[1743265616932,17.07468005,126.0,125.96,29.2]
[1743265617129,17.12495269,126.0,125.97,0.05286796]
[1743265618631,17.12495269,126.0,125.97,7.99406796]
[1743265619336,7.99007264,126.0,125.97,7.99406796]
[1743265620140,0.05027264,126.0,125.98,7.9406]
[1743265620337,0.05027264,126.0,125.99,29.14]
[1743265620739,7.98977264,126.0,125.99,29.14]
[1743265628045,0.05027264,126.0,125.99,29.14]
[1743265628943,0.05027264,126.0,125.99,37.0801]
[1743265629149,9.13488005,126.05,125.99,38.27488005]
[1743265629344,9.13488005,126.05,126.0,9.13488005]
[1743265629544,9.13488005,126.05,126.02,7.9381]
[1743265629840,7.9367,126.05,126.03,29.06]
[1743265630243,7.99250562,126.05,126.03,29.11071995]
[1743265632146,17.12738567,126.05,126.03,29.11071995]
[1743265632850,0.05580562,126.05,126.03,37.04811995]
[1743265633048,0.05580562,126.05,126.03,29.11071995]
[1743265633950,0.05580562,126.05,126.03,37.04781995]
[1743265634249,0.05580562,126.05,126.03,29.11071995]
[1743265635349,0.05580562,126.05,126.04,7.937]
[1743265635844,0.05580562,126.05,126.03,29.11071995]
[1743265636449,7.99220562,126.05,126.03,29.11071995]
[1743265636651,0.05580562,126.05,126.03,29.11071995]
[1743265636847,0.05580562,126.05,126.03,37.04821995]
[1743265641252,0.05580562,126.05,126.03,29.11071995]
[1743265643154,0.05580562,126.05,126.03,37.04801995]
[1743265645353,7.99220562,126.05,126.03,29.11071995]
[1743265645555,17.12708567,126.05,126.03,29.11071995]
[1743265646349,17.12708567,126.05,126.03,0.05071995]
[1743265646544,9.13488005,126.04,125.96,9.13488005]
[1743265646749,9.13488005,126.0,125.97,30.30696741]
[1743265646950,9.13488005,126.0,125.97,28.88]
[1743265647149,9.13488005,126.01,125.97,28.88]
[1743265647450,9.13488005,126.02,125.97,38.01488005]
[1743265647656,0.05201981,126.0,125.98,17.13393535]
[1743265648146,0.05201981,126.0,125.98,9.19353535]
[1743265649352,0.05201981,126.0,125.99,7.9401]
[1743265649556,9.13488005,126.05,125.99,9.13488005]
[1743265649757,9.13488005,126.06,126.01,9.13488005]
[1743265649945,7.9368,126.05,126.01,17.07338005]
[1743265650145,17.07168005,126.05,126.01,7.9385]
[1743265650651,0.05117825,126.04,126.02,0.0553838]
[1743265650852,0.05117825,126.04,126.03,28.92]
[1743265651556,17.1230583,126.04,126.03,28.92]
[1743265653161,0.05117825,126.04,126.03,28.92]
[1743265653553,0.05117825,126.04,126.03,36.8576]
[1743265653953,0.05117825,126.04,126.03,28.92]
[1743265654553,7.98817825,126.04,126.03,28.92]
[1743265656053,0.05117825,126.04,126.03,28.92]
[1743265656961,0.05117825,126.04,126.03,36.8576]
[1743265662058,0.05117825,126.04,126.03,45.99248005]
[1743265662254,13.27928005,126.09,126.03,38.05488005]
[1743265662459,13.27928005,126.09,126.04,9.13488005]
[1743265662862,21.21338005,126.09,126.05,7.936]
[1743265663056,21.21338005,126.09,126.06,28.82]
[1743265663261,21.27084163,126.09,126.06,28.88102846]
[1743265663454,21.27084163,126.09,126.06,36.81662846]
[1743265663965,7.9345,126.08,126.06,28.88102846]
[1743265664858,0.05746158,126.09,126.06,28.88102846]
[1743265665467,7.99136158,126.09,126.06,36.81642846]
[1743265665960,0.05746158,126.09,126.08,9.13488005]
[1743265666166,9.13488005,126.14,126.08,9.13488005]
[1743265666365,9.13488005,126.14,126.1,9.13488005]
[1743265666566,9.13488005,126.14,126.11,28.82]
[1743265667168,9.19164986,126.14,126.11,28.87927448]
[1743265667769,7.9315,126.13,126.11,28.87927448]
[1743265668863,9.19164986,126.14,126.11,28.87927448]
[1743265669272,0.05676981,126.14,126.11,28.87927448]
[1743265669467,7.9313,126.13,126.11,28.87927448]
[1743265669664,0.05676981,126.14,126.11,28.87927448]
[1743265670166,7.9316,126.13,126.11,28.87927448]
[1743265671070,7.9319,126.12,126.11,28.87927448]
[1743265674066,7.9316,126.13,126.11,28.87927448]
[1743265675173,7.9319,126.12,126.11,28.87927448]
[1743265676780,17.06678005,126.12,126.11,0.05927448]
[1743265681381,9.13488005,126.12,126.07,28.66]
[1743265681581,9.13488005,126.09,126.07,28.66]
[1743265681776,7.9347,126.08,126.07,28.66]
[1743265682080,9.13488005,126.1,126.07,28.66]
[1743265682379,9.18731696,126.1,126.07,28.71083916]
[1743265682586,0.05243691,126.1,126.07,28.71083916]
[1743265683086,7.9339,126.09,126.07,28.71083916]
[1743265683289,7.9339,126.09,126.08,28.66]
[1743265684188,7.9344,126.08,126.07,28.71083916]
[1743265684385,17.06928005,126.08,126.07,28.71083916]
[1743265686687,17.06928005,126.08,126.07,0.05083916]
[1743265690192,9.13488005,126.08,126.0,9.13488005]
[1743265690395,9.13488005,126.04,126.01,28.62]
[1743265690894,17.07218005,126.04,126.01,36.5588]
[1743265691089,9.13488005,126.04,126.0,9.13488005]
[1743265691295,9.13488005,126.04,126.01,28.62]
[1743265691593,7.9382,126.02,126.01,28.67278496]
[1743265692594,0.05629802,126.03,126.01,28.67278496]
[1743265693195,7.99399802,126.03,126.01,28.67278496]
[1743265693588,0.05629802,126.03,126.01,28.67278496]
[1743265693789,9.13488005,126.1,126.02,9.13488005]
[1743265693991,9.13488005,126.1,126.05,9.13488005]
[1743265694195,9.13488005,126.1,126.06,28.6]
[1743265694494,7.9335,126.1,126.06,28.6]
[1743265694893,7.9335,126.1,126.06,36.5352]
[1743265695094,0.05505209,126.09,126.07,0.05127841]
[1743265695796,0.05505209,126.09,126.07,7.98627841]
[1743265696090,0.05505209,126.09,126.07,0.05127841]
[1743265696295,0.05505209,126.09,126.07,9.18615846]
[1743265696491,0.05505209,126.09,126.08,7.9344]
[1743265697494,4.0855,126.13,126.1,7.9331]
[1743265697495,9.13488005,126.13,126.1,7.9331]
[1743265697685,7.9315,126.13,126.11,28.58]
[1743265697889,17.06638005,126.13,126.11,28.58]
[1743265698393,17.06568005,126.14,126.11,28.58]
[1743265698594,0.05904057,126.13,126.11,28.64084056]
[1743265698999,0.05904057,126.13,126.11,36.57334056]
[1743265699290,7.99044057,126.13,126.11,28.64084056]
[1743265700399,7.9319,126.12,126.11,28.64084056]
[1743265700693,17.06678005,126.12,126.11,28.64084056]
[1743265702203,17.06678005,126.12,126.11,0.06084056]
[1743265702402,7.9319,126.12,126.11,0.06084056]
[1743265705098,0.05904057,126.13,126.11,0.06084056]
[1743265705706,0.05904057,126.13,126.11,7.99314056]
[1743265707013,7.99044057,126.13,126.11,0.06084056]
[1743265707604,17.06678005,126.12,126.11,0.06084056]
[1743265707904,17.06678005,126.12,126.11,28.62084056]
[1743265710206,17.06678005,126.12,126.11,0.06084056]
[1743265710412,7.9335,126.1,126.06,9.13488005]
[1743265710612,7.9335,126.1,126.07,28.52]
[1743265710811,7.9335,126.1,126.07,36.4549]
[1743265711508,7.98501346,126.1,126.07,36.50624372]
[1743265712312,7.98501346,126.1,126.07,7.98624372]
[1743265712513,7.98501346,126.1,126.08,28.5]
[1743265716617,0.05151346,126.1,126.08,28.5]
[1743265717317,7.98471346,126.1,126.08,28.5]
[1743265718923,7.98471346,126.1,126.09,28.44]
[1743265724324,17.11959351,126.1,126.09,28.44]
[1743265724524,17.11959351,126.1,126.07,0.05134372]
[1743265724525,7.9344,126.08,126.07,0.05134372]
[1743265724725,7.9344,126.08,126.07,28.43134372]
[1743265727222,7.934,126.09,126.07,28.43134372]
[1743265727721,7.98501346,126.1,126.07,36.36644372]
[1743265728425,7.9339,126.09,126.07,28.43134372]
[1743265730524,7.9339,126.09,126.07,36.36634372]
[1743265731024,7.98501346,126.1,126.07,36.36634372]
[1743265733922,0.05151346,126.1,126.08,7.9344]
[1743265734120,0.05151346,126.1,126.07,28.43134372]
[1743265734724,7.98501346,126.1,126.07,36.36604372]
[1743265740731,7.98501346,126.1,126.08,7.9343]
[1743265740927,0.05151346,126.1,126.09,9.13488005]
[1743265741128,9.13488005,126.15,126.09,9.13488005]
[1743265741328,5.06426535,126.14,126.1,37.49488005]
[1743265741530,5.06426535,126.13,126.1,37.49488005]
[1743265741736,270.77488005,126.16,126.11,9.13488005]
[1743265741934,5.0634606,126.15,126.11,9.13488005]
[1743265742133,7.9303,126.15,126.12,7.9316]
[1743265742334,0.05563139,126.14,126.13,28.36]
[1743265745035,7.98633139,126.14,126.13,28.36]
[1743265745525,17.12121144,126.14,126.13,28.36]
[1743265745727,7.9313,126.13,126.12,0.05008288]
[1743265745925,9.13488005,126.13,126.09,28.36]
[1743265746127,9.13488005,126.1,126.09,28.36]
[1743265746336,17.06808005,126.1,126.09,28.36]
[1743265747924,9.19345983,126.11,126.09,28.36]
[1743265748133,0.05857978,126.11,126.09,37.49488005]
[1743265748330,0.05857978,126.11,126.1,9.13488005]
[1743265748635,0.05857978,126.11,126.1,17.06808005]
[1743265750136,0.05857978,126.11,126.09,49.70538005]
[1743265751439,0.05857978,126.11,126.09,40.5705]
[1743265752338,7.99137978,126.11,126.09,28.36]
[1743265753639,0.05857978,126.11,126.09,36.2937]
[1743265753841,0.05857978,126.11,126.09,37.49488005]
[1743265754539,0.05857978,126.11,126.1,9.13488005]
[1743265754741,0.05857978,126.11,126.1,17.06808005]
[1743265764755,0.05857978,126.11,126.1,7.9332]
[1743265768458,0.05857978,126.11,126.1,17.06808005]
[1743265770854,0.05857978,126.11,126.09,45.42838005]
[1743265771055,0.05857978,126.11,126.09,36.2935]
[1743265774662,0.05857978,126.11,126.08,0.05391931]
[1743265774862,9.13488005,126.1,126.08,28.41391931]
[1743265775763,7.9338,126.09,126.08,0.05391931]